Cogmind - Beta 14 @@@ ROGUE MODE // 2024.12.22 @ 20:14:24 Player: iromakkem Result: Destroyed by G-47 Trooper with Particle Gun Performance ------------- Evolutions (0) 0 Regions Visited (2) 400 Robots Destroyed (18) 90 Value Destroyed (424) 424 Prototype IDs (0) 0 Alien Tech Used (0) 0 Bonus (0) 0 TOTAL SCORE: 914 Bonus ------- None Cogmind --------- Core Integrity 0/250 Matter 286/300 Energy 116/250 System Corruption 0% Temperature Cool (9) Movement Treading (320) Ox2 Location -10/Mines Parts ------- > --- POWER (1) -------- Ion Engine > --- PROPULSION (2) --- Light Treads Light Treads > --- UTILITY (2) ------ Huge Storage Unit Improved Terrain Scanner > --- WEAPON (2) ------- Light Assault Rifle Light Assault Rifle > --- INVENTORY (25) --- Ion Engine Light Ion Engine Aluminum Leg Aluminum Leg Aluminum Leg Aluminum Leg Aluminum Leg Aluminum Leg Aluminum Leg Medium Matter Pod (3) Sensor Array Signal Interpreter Terrain Scanner Terrain Scan Processor Seismic Detector Light Armor Plating Light Armor Plating Light Assault Rifle Light Assault Rifle Light Assault Rifle Grenade Launcher Peak State ------------ > --- POWER ------------ Ion Engine > --- PROPULSION ------- Light Treads Light Treads > --- UTILITY ---------- Huge Storage Unit Improved Terrain Scanner > --- WEAPON ----------- Medium Laser Light Assault Rifle > --- INVENTORY -------- Ion Engine Ion Engine Light Ion Engine Light Treads Aluminum Leg Aluminum Leg Aluminum Leg Aluminum Leg Aluminum Leg Aluminum Leg Aluminum Leg Sensor Array Signal Interpreter Terrain Scanner Terrain Scan Processor Seismic Detector Light Assault Rifle Light Assault Rifle Grenade Launcher [Rating: 11] Favorites ----------- Power Ion Engine Engine Ion Engine Propulsion Light Treads Treads Light Treads Leg Aluminum Leg Utility Improved Terrain Scanner Device Improved Terrain Scanner Storage Huge Storage Unit Weapon Medium Laser Energy Gun Medium Laser Ballistic Gun Assault Rifle Build | -11 -10 -10 ------- Run | Yrd Mat Min Slots Evolved . | . . . Power . | . . . Propulsion . | . . . Utility . | . . . Weapon . | . . . Parts Attached 14 | 7 6 1 Power 2 | 1 . 1 Engine 2 | 1 . 1 Core . | . . . Reactor . | . . . Propulsion 5 | 2 3 . Treads 3 | . 3 . Leg 2 | 2 . . Wheel . | . . . Hover . | . . . Flight . | . . . Utility 3 | 2 1 . Device 1 | 1 . . Storage 2 | 1 1 . Processor . | . . . Hackware . | . . . Protection . | . . . Artifact . | . . . Weapon 4 | 2 2 . Energy Gun 1 | 1 . . Energy Cannon . | . . . Ballistic Gun 3 | 1 2 . Ballistic Cannon . | . . . Launcher . | . . . Special Weapon . | . . . Impact Weapon . | . . . Slashing Weapon . | . . . Piercing Weapon . | . . . Special Melee Weapon . | . . . Unidentified Prototypes . | . . . Parts Lost 4 | . 3 1 Power 1 | . . 1 Propulsion 1 | . 1 . Utility . | . . . Weapon 2 | . 2 . Highest Loss Streak 2 | . 2 1 To Critical Strikes . | . . . Average Slot Usage (%) 100 | . 100 . Engine 14 | . 14 . Treads 17 | . 17 . Leg 10 | . 10 . Device 14 | . 14 . Storage 14 | . 14 . Energy Gun 10 | . 10 . Ballistic Gun 17 | . 17 . Peak Build Rating 11 | 9 11 11 Average Rating 9 | 5 9 10 On Entrance 6 | . 9 11 Naked Turns . | . . . Heaviest Build 90 | 15 90 . Greatest Support 40 | 20 40 . Greatest Overweight (x) 4 | 1 4 . Average Overweight (x) . | . . . Largest Inventory Capacity 25 | 8 25 25 Average Capacity 18 | 7 20 25 Most Carried 22 | 5 22 22 Average Carried 11 | 3 12 21 Final Capacity 25 | 8 25 25 Final Carried 22 | 5 22 21 Class Distribution -------------------- 100% | Mutant Dominant Class ---------------- Mutant | -10/Materials Mutant | -10/Mines Resources | -11 -10 -10 ----------- Run | Yrd Mat Min Matter Collected 450 | 299 151 . Remotely . | . . . Salvage Created 679 | 132 511 36 Parts 34 | 5 26 3 Haulers Intercepted 1 | . 1 . Recyclers Shooed 2 | . 2 . Parts Field Recycled . | . . . Retrieved Matter . | . . . Parts Self-Destructed . | . . . Prevented . | . . . Kills | -11 -10 -10 ------- Run | Yrd Mat Min Combat Hostiles Destroyed 10 | . 9 1 Guns 10 | . 9 1 Classes Destroyed 7 | 2 5 . Worker 2 | . 2 . Builder 1 | . 1 . Tunneler 2 | 2 . . Hauler 1 | . 1 . Recycler 1 | 1 . . Watcher 1 | . 1 . Grunt 10 | . 9 1 Best Kill Streak 3 | 2 3 1 Combat Bots Only 2 | . 2 1 Max Kills in Single Turn 1 | 1 1 1 Gunslinging . | . . . Exploded . | . . . Melee . | . . . Uniques/NPCs Destroyed . | . . . Combat | -11 -10 -10 -------- Run | Yrd Mat Min Hostile Shots Fired 94 | . 88 6 Missed 26 | . 25 1 Damage Taken 871 | . 803 68 Core 254 | . 220 34 Absorbed by Shields . | . . . Core Remaining (%) 100 | 100 . . Volleys Fired 62 | 11 48 3 Largest 2 | 2 2 2 Hottest 70 | 70 70 40 Shots Fired 123 | 22 95 6 Gun 123 | 22 95 6 Cannon . | . . . Launcher . | . . . Special . | . . . Kinetic 71 | 11 54 6 Thermal 52 | 11 41 . Explosive . | . . . Electromagnetic . | . . . Robot Hit Streak 11 | 9 11 7 Robot Miss Streak 4 | 2 4 . Penetration Max . | . . . Secondary Targets 1 | . . 1 Max Gunslinging Chain 1 | . . 1 Shots Hit Robots 81 | 14 61 6 Core Hits 36 | 4 29 3 Critical Kills . | . . . Critical Parts Destroyed . | . . . Critical Strikes 5 | 1 4 . Burn 5 | 1 4 . Melee Attacks . | . . . Impact . | . . . Slashing . | . . . Piercing . | . . . Sneak Attacks . | . . . Combat Hostiles . | . . . Follow-up Attacks . | . . . Damage Inflicted 907 | 173 682 52 Guns 888 | 173 663 52 Cannons . | . . . Explosions . | . . . Melee . | . . . Ramming 19 | . 19 . Kinetic 447 | 73 322 52 Thermal 441 | 100 341 . Explosive . | . . . Electromagnetic . | . . . Impact . | . . . Slashing . | . . . Piercing . | . . . Highest Corruption . | . . . Average Corruption . | . . . Corruption Purged . | . . . Corruption Blocked . | . . . Overload Shots . | . . . Overflow Damage . | . . . Projectiles . | . . . Explosions . | . . . Melee . | . . . Knockbacks . | . . . Impact . | . . . Kinetic . | . . . Secondary . | . . . Self-Inflicted Damage . | . . . Shots . | . . . Rammed 2 | . 2 . Targets Rammed 4 | . 4 . Kicked . | . . . Crushed 2 | . 2 . Highest Temperature 161 | 45 161 15 Average Temperature 39 | 15 44 10 Received Heat Transfer 522 | . 483 39 Siege Activations . | . . . Robots Corrupted . | . . . Combat Hostiles . | . . . Parts Fried . | . . . Impact Corruptions . | . . . Robots Melted . | . . . Combat Hostiles . | . . . Parts Melted 5 | . 5 . Heat Transferred 1665 | 370 1295 . Parts Sabotaged . | . . . Parts Stolen . | . . . Parts Stripped . | . . . Power Chain Reactions . | . . . Alert | -11 -10 -10 ------- Run | Yrd Mat Min Peak Influence 277 | 15 277 59 Initial 49 | . 9 49 Average 83 | 6 94 51 Maximum Alert Level 1 | . 1 . Low Security (%) 80 | 100 77 100 Level 1 19 | . 22 . Level 2 . | . . . Level 3 . | . . . Level 4 . | . . . Level 5 . | . . . High Security . | . . . Max Security . | . . . Squads Dispatched 1 | . 1 . Investigation 1 | . 1 . Extermination . | . . . Reinforcement . | . . . Assault . | . . . Garrison . | . . . Intercept . | . . . Searches Triggered . | . . . Construction Impeded . | . . . Haulers Reinforced . | . . . Active Scanning Responses . | . . . Cargo Convoy Interrupts . | . . . Stealth | -11 -10 -10 --------- Run | Yrd Mat Min Distress Signals 1 | . 1 . Communications Jammed . | . . . Distress Signals . | . . . Times Spotted 20 | . 18 2 Peak Tracking Total 4 | . 4 2 Tactical Retreats 3 | . 3 . Traps | -11 -10 -10 ------- Run | Yrd Mat Min Traps Triggered 1 | . 1 . Indirectly . | . . . Trap Hack Attempts . | . . . Triggered . | . . . Disarmed . | . . . Reprogrammed . | . . . Reused . | . . . Traps Extracted . | . . . Installed . | . . . Triggered . | . . . Machines | -11 -10 -10 ---------- Run | Yrd Mat Min Machines Disabled 2 | . 2 . Max in Single Turn 2 | . 2 . Machines Repaired . | . . . Machines Dismantled . | . . . Machines Sabotaged . | . . . Overloaded Fab Kills . | . . . Hacking | -11 -10 -10 --------- Run | Yrd Mat Min Machines Accessed . | . . . Terminals . | . . . Fabricators . | . . . Repair Stations . | . . . Recycling Units . | . . . Scanalyzers . | . . . Garrison Access . | . . . Total Hacks . | . . . Successful . | . . . Failed . | . . . Catastrophic . | . . . Database Lockouts . | . . . Manual . | . . . Terminals . | . . . Fabricators . | . . . Repair Stations . | . . . Recycling Units . | . . . Scanalyzers . | . . . Garrison Access . | . . . Terminal Hacks . | . . . Fabricator Hacks . | . . . Repair Station Hacks . | . . . Recycling Unit Hacks . | . . . Scanalyzer . | . . . Garrison Access Hacks . | . . . Unauthorized Hacks . | . . . Terminals . | . . . Fabricators . | . . . Repair Stations . | . . . Recycling Units . | . . . Scanalyzers . | . . . Garrison Access . | . . . Data Cores Recovered . | . . . Used . | . . . Hacking Detections . | . . . Full Trace Events . | . . . Feedback Events . | . . . Feedback Blocked . | . . . Robot Schematics Acquired . | . . . Robots Built . | . . . Authchips . | . . . Time . | . . . Total Robot Build Rating . | . . . Part Schematics Acquired . | . . . Parts Built . | . . . Authchips . | . . . Time . | . . . Total Part Build Rating . | . . . Parts Repaired . | . . . Time . | . . . Parts Recycled . | . . . Recycled Matter . | . . . Retrieved Matter . | . . . Retrieved Components . | . . . Parts Scanalyzed . | . . . Part Schematics Acquired . | . . . Parts Damaged . | . . . Bothacking | -11 -10 -10 ------------ Run | Yrd Mat Min Used RIF Installer . | . . . Robots Hacked . | . . . Non-combat . | . . . Combat . | . . . Robot Hacks Applied . | . . . Relay Couplers Released . | . . . Fabnet Peak Effective % . | . . . Robots Rewired . | . . . Allies Hacked . | . . . Hacks Repelled . | . . . Allies | -11 -10 -10 -------- Run | Yrd Mat Min Total Allies . | . . . Largest Group . | . . . Highest-Rated Group . | . . . Highest-Rated Ally . | . . . Total Orders . | . . . Ally Attacks . | . . . Total Damage . | . . . Kills . | . . . Allies Corrupted . | . . . Allies Melted . | . . . Intel | -11 -10 -10 ------- Run | Yrd Mat Min Robot Analysis Total . | . . . Derelict Logs Recovered . | . . . Drone Launches . | . . . Drone Recoveries . | . . . Exploration | -11 -10 -10 ------------- Run | Yrd Mat Min Turns Passed 998 | 116 874 8 Spaces Moved 378 | 57 321 . Core 3 | 3 . . Treads 118 | . 118 . Legs 257 | 54 203 . Wheels . | . . . Hover . | . . . Flight . | . . . Fastest Speed 50 | 50 120 . Average Speed 197 | 120 210 . Slowest Speed 400 | 190 400 . Overloaded Moves . | . . . Propulsion Burnouts . | . . . Robots Hopped . | . . . Cave-ins Triggered . | . . . Exploration Rate (%) 15 | 4 39 3 Regions Visited 2 Branch Regions 1 Pre-discovered Areas . | . . . Known Exits Taken . | . . . Unknown Exits Taken 2 | 1 1 . Scrap Searched . | . . . Spaces Dug . | . . . Terrain Destroyed . | . . . Melee . | . . . Projectile . | . . . AOE . | . . . Terrain Rammed . | . . . Walls Destroyed . | . . . Machines Disabled . | . . . Actions | -11 -10 -10 --------- Run | Yrd Mat Min Total 506 | 79 423 4 Wait 17 | . 17 . Move 376 | 56 320 . Hop . | . . . Pick Up 29 | 5 24 . Fast Attach 7 | 7 . . Attach 4 | . 3 1 Detach . | . . . Swap 3 | . 3 . Drop 4 | . 4 . Fire 62 | 11 48 3 Melee . | . . . Ram . | . . . Kick . | . . . Crush 4 | . 4 . Escape Stasis . | . . . Rewire . | . . . Trap . | . . . Miscellaneous . | . . . Route ------- -11/Scrapyard -10/Materials (discovered 2 exits: [*Mat] / [*Min]) -10/Mines History --------- Turn | Location | Event 4 | -11/Scrapyard | Discovered new exit (range 15) 117 | -11/Scrapyard | Entered Materials 212 | -10/Materials | Discovered new exit (range 11) 304 | -10/Materials | Build established: Mutant 334 | -10/Materials | Discovered new exit (range 16) 792 | -10/Materials | Core integrity fell below 50% 800 | -10/Materials | Core integrity fell below 20% 991 | -10/Materials | Entered Mines 999 | -10/Mines | Destroyed by G-47 Trooper with Particle Gun Last Messages --------------- 00832_ R-06 Scavenger collects Aluminum Leg. 00836_ K-01 Serf collects debris. 00836_ R-06 Scavenger collects Heat Sink. 00842_ Acquired 2 matter. 00843_ K-01 Serf collects debris. 00859_ Acquired 2 matter. 00861_ K-01 Serf collects debris. 00862_ Acquired 2 matter. 00864_ K-01 Serf collects debris. 00879_ Acquired Lgt. Armor Plating. 00882_ K-01 Serf collects debris. 00884_ Acquired Lgt. Armor Plating. 00886_ K-01 Serf collects debris. 00984_ Acquired Med. Matter Pod. LOCATION=UNKNOWN GOAL=ESCAPE 00993_ Ion Engine destroyed. 00995_ G-34 Mercenary destroyed. 00995_ Switching to secondary target: G-47 Trooper. Map ----- +----------------------------------------------------+ | ????????????????????????????????????????????????? | | ????????????????????????????????????????????????? | | ????????????????????????????????????????????????? | | ????????????????????????????????????????????????? | | ????????????????????????????????????????????????? | | ????????????????????????????????????????????????? | | ????????????????????????????????????????????????? | | ????????????????????????????????????????????????? | | ????????????????????????????????????????????????? | | ????????????????????????????????????????????????? | | ????????????????????????????????????????????????? | | ????????????????????????????????????????????????? | | ????????????????????????????????????????????????? | | ????????????????????????????????????????????????? | | ?????????????????????????????? ?????????????????? | | ????????????????????????????????????????????????? | | ????????????????????????????????????????????????? | | ??????????????????? ????????????????????????????? | | ????????????????????????????????????????????????? | | ?????????????????????#??????????????????????????? | | ?????????????????????# ?????????????????????????? | | ????????????????????## #####????????????????????? | | ????????????????????# * #????????????????????? | | ????????????????????# %= #????????????????????? | | ????????????????????# [ #????????????????????? | | ????????????????????# @ #????????????????????? | | ????????????????????# g #????????????????????? | | ????????????????????# #????????????????????? | | ????????????????????# #????????????????????? | | ???????????? ???????# #????????????????????? | | ????????????????????########????????????????????? | | ????????????????????????????????????????????????? | | ????????????????????????????????????????????????? | | ????????????????????????????????????????????????? | | ????????????????????????????????????????????????? | | ????????????????????????????????????????????????? | | ????????????????????????????????????????????????? | | ????????????????????????????????????????????????? | | ????????????????????????????????????????????????? | | ????????????????????????????????????????????????? | | ????????????????????????????????????????????????? | | ????????????????????????????????????????????????? | | ????????????????????????????????????????????????? | | ????????????????????????????????????????????????? | | ????????????????????????????????????????????????? | | ????????????????????????????????????????????????? | | ????????????????????????????????????????????????? | | ????????????????????????????????????????????????? | | ????????????????????????????????????????????????? | | ????????????????????????????????????????????????? | +----------------------------------------------------+ Best States ------------- Heat Dissipation 25 Energy Generation 10 Energy Capacity 250 Matter Stores 300 Matter Capacity 300 Sight Range 16 Terrain Scan Range 16 Terrain Scan Density 10 Evasion (%) 55 Recoil Reduction 2 Item Schematics ----------------- None Robot Schematics ------------------ None Fabricated ------------ Nothing Alien Tech Used ----------------- None Achievements -------------- None Challenges ------------ None Game ------ Seed XenonStormInverter Manual? 0 Play Time 00:09:15 Cumulative 24.7 hours Start 2024.12.22 @ 19:51:01 End 2024.12.22 @ 20:14:24 Sessions 1 Manual Loads 0 Difficulty Rogue Special Mode None Game No. 27 Rogue 27 Adventurer 0 Explorer 0 Win Type - Total 0 Types 0/0/0/0/0/0/0/0/0 Lore% 3 Gallery% 18 Achievement% 17 Wizard Run 0 Options --------- Layout 1 ASCII 0 Keyboard 0 Movement Numpad Keybinds 0 Fullscreen 1 Font 16/SmallcapsGlow Map View 50x40 Zoom Use 92% Tactical HUD 1 Map Filters NONE Filters NONE Steam SD RUN: 0f130c8c-ca57-4281-a0c5-2015379fd1b1